bitfinex/quotes_ETHUSD_20250905
["timestamp","ask_amount","ask_price","bid_price","bid_amount"]
[1757088243404,6.40814732,4282.4,4282.0,0.4892]
[1757088243627,2.33519778,4282.3,4282.0,0.4892]
[1757088243835,4.073,4282.2,4281.9,0.4564]
[1757088244135,4.073,4282.2,4281.8,14.62584001]
[1757088244136,2.33541184,4281.9,4281.8,1e-08]
[1757088244310,6.40741184,4281.9,4281.8,1e-08]
[1757088244634,4.072,4281.9,4281.8,0.31280001]
[1757088244935,4.072,4281.9,4281.8,0.80200001]
[1757088245145,6.40741184,4281.9,4281.8,0.80200001]
[1757088245519,4.072,4281.9,4281.8,0.80200001]
[1757088245721,6.40741184,4281.9,4281.8,1e-08]
[1757088245920,4.072,4281.9,4281.8,1e-08]
[1757088246122,6.40741184,4281.9,4281.8,1e-08]
[1757088246438,6.72181184,4281.9,4281.8,1e-08]
[1757088246956,7.18421184,4281.9,4281.8,1e-08]
[1757088247111,4.071,4281.9,4281.8,0.80200001]
[1757088247313,4.071,4281.9,4281.8,0.31280001]
[1757088247644,6.72081184,4281.9,4281.8,1e-08]
[1757088247815,7.18321184,4281.9,4281.8,0.00400001]
[1757088248412,7.68181184,4281.9,4281.8,0.00400001]
[1757088248823,10.68181184,4281.9,4281.8,0.00400001]
[1757088249549,10.68181184,4281.9,4281.8,1e-08]
[1757088249750,11.47381184,4281.9,4281.8,1e-08]
[1757088249927,7.40281184,4281.9,4281.8,1e-08]
[1757088250126,5.64981184,4281.9,4281.8,1e-08]
[1757088250324,9.40641184,4281.9,4281.8,1e-08]
[1757088250620,5.33541184,4281.9,4281.8,1e-08]
[1757088250842,5.33541184,4281.9,4281.8,0.77120001]
[1757088250843,9.40641184,4281.9,4281.8,0.77120001]
[1757088251032,5.33541184,4281.9,4281.8,0.77120001]
[1757088251224,9.40641184,4281.9,4281.8,0.29560001]
[1757088251420,5.33541184,4281.9,4281.8,1e-08]
[1757088251620,9.40541184,4281.9,4281.8,1e-08]
[1757088253147,9.40541184,4281.9,4281.8,0.29560001]
[1757088253323,9.40541184,4281.9,4281.8,1e-08]
[1757088253523,9.69681184,4281.9,4281.8,1e-08]
[1757088253847,10.60651184,4281.9,4281.8,1e-08]
[1757088254038,10.14481184,4281.9,4281.8,1e-08]
[1757088254234,6.07481184,4281.9,4281.8,1e-08]
[1757088254415,10.14281184,4281.9,4281.8,1e-08]
[1757088254752,5.62681184,4281.9,4281.8,1e-08]
[1757088254910,5.33541184,4281.9,4281.8,1e-08]
[1757088255115,9.40341184,4281.9,4281.8,1e-08]
[1757088255413,9.69481184,4281.9,4281.8,1e-08]
[1757088255610,10.14281184,4281.9,4281.8,1e-08]
[1757088255847,9.40341184,4281.9,4281.8,1e-08]
[1757088256143,9.40241184,4281.9,4281.8,1e-08]
[1757088256350,9.69381184,4281.9,4281.8,1e-08]
[1757088257251,4.067,4281.9,4281.8,1.20250001]
[1757088258166,4.065,4281.9,4281.8,1.20250001]
[1757088259254,6.69181184,4281.9,4281.8,1e-08]
[1757088259555,6.40041184,4281.9,4281.8,1e-08]
[1757088259848,7.60151184,4281.9,4281.8,1e-08]
[1757088260050,7.13981184,4281.9,4281.8,1e-08]
[1757088260623,7.14781184,4281.9,4281.8,1e-08]
[1757088261320,4.073,4281.9,4281.8,0.29560001]
[1757088261523,6.40841184,4281.9,4281.8,1e-08]
[1757088261718,6.69981184,4281.9,4281.8,1e-08]
[1757088261958,2.62681184,4281.9,4281.8,1e-08]
[1757088262157,3.07481184,4281.9,4281.8,1e-08]
[1757088262359,1.746,4282.8,4281.8,1.20250001]
[1757088262654,4.071,4282.7,4281.9,0.4756]
[1757088262859,2.33527705,4282.2,4281.9,0.4756]
[1757088263020,4.072,4282.1,4281.9,0.4756]
[1757088263215,4.072,4282.0,4281.9,0.32424013]
[1757088265796,4.072,4282.0,4281.8,0.29560001]
[1757088265971,4.072,4282.0,4281.8,0.77120001]
[1757088266294,4.072,4282.0,4281.9,0.4756]
[1757088266483,4.067,4282.0,4281.9,1.2025]
[1757088266783,4.068,4282.0,4281.9,1.32275]
[1757088267379,4.068,4282.0,4281.9,0.7712]
[1757088267951,4.068,4282.0,4281.9,0.2956]
[1757088268455,4.068,4282.0,4281.9,0.7712]
[1757088268849,0.001,4282.0,4281.9,0.7712]
[1757088269045,4.064,4282.0,4281.9,0.7712]
[1757088269458,4.064,4282.0,4281.9,0.2956]
[1757088269658,4.064,4282.0,4281.9,0.7712]
[1757088269862,4.063,4282.0,4281.9,0.7712]
[1757088270080,4.062,4282.0,4281.9,1.2025]
[1757088270947,0.001,4282.0,4281.9,1.55630517]
[1757088271146,0.001,4282.0,4281.9,3.89171701]
[1757088271877,0.001,4282.0,4281.9,1.55630517]
[1757088272183,0.001,4282.0,4281.9,1.2025]
[1757088272680,0.001,4282.0,4281.9,0.7712]
[1757088273050,0.001,4282.0,4281.8,1e-08]
[1757088273881,0.001,4282.0,4281.9,0.7712]
[1757088274257,0.001,4282.0,4281.9,3.65391184]
[1757088274448,0.001,4282.0,4281.9,4.13685034]
[1757088274672,0.001,4282.0,4281.9,4.47139773]
[1757088274993,0.001,4282.0,4281.9,5.26339773]
[1757088275150,0.001,4282.5,4282.4,19.98731715]
[1757088275354,0.001,4283.9,4282.6,0.792]
[1757088275588,0.001,4283.9,4283.6,2.63008501]
[1757088275761,0.001,4283.9,4283.6,2.8486324]
[1757088275963,0.001,4283.9,4283.6,3.7555324]
[1757088276197,0.001,4283.9,4283.6,3.3242324]
[1757088276490,0.001,4283.9,4283.6,4.32141379]
[1757088276796,0.001,4283.9,4283.6,1.55562878]
[1757088277153,0.2924,4283.7,4283.6,0.21854739]
[1757088277361,0.7404,4283.7,4283.1,0.21854739]
[1757088277566,0.7404,4283.7,4283.2,0.21854739]
[1757088277764,0.7404,4283.7,4283.3,0.21854739]
[1757088277974,0.2924,4283.7,4283.0,2.8103708]
[1757088278181,0.2924,4283.7,4283.1,0.73239978]
[1757088278378,0.2924,4283.7,4283.2,0.21787061]
[1757088278610,0.448,4283.6,4282.6,0.4756]
[1757088278810,4.055,4283.5,4282.8,2.33492102]
[1757088278963,4.055,4283.5,4282.6,0.4756]
[1757088279168,4.055,4283.5,4282.4,2.33509503]
[1757088279169,2.3347399,4283.2,4282.4,2.33509503]
[1757088279489,2.33476044,4283.1,4282.5,0.51015999]
[1757088279804,2.33476044,4283.1,4281.9,0.5989385]
[1757088279805,0.2937,4282.6,4281.9,2.93432635]
[1757088280162,4.054,4283.0,4282.0,0.4838]
[1757088280516,4.054,4283.0,4282.3,2.33519352]
[1757088280893,2.33476208,4283.1,4282.3,2.33519352]
[1757088281216,2.33466067,4283.3,4282.3,0.48361982]
[1757088281373,4.053,4283.0,4282.4,2.33513802]
[1757088281765,0.5,4283.7,4282.9,0.2956]
[1757088281766,2.33457357,4283.5,4282.9,0.2956]
[1757088282008,4.053,4283.4,4282.9,0.2956]
[1757088282411,4.053,4283.4,4282.3,0.4742]
[1757088282597,2.33464851,4283.3,4282.5,2.33503859]
[1757088282798,0.001,4283.7,4282.7,2.33497559]
[1757088282965,4.052,4283.6,4282.7,2.33497559]
[1757088283170,2.33546947,4283.7,4282.8,0.958]
[1757088283171,4.052,4283.5,4282.8,0.958]
[1757088283496,4.052,4283.5,4283.2,2.33467083]
[1757088283813,0.001,4283.7,4283.2,2.33467083]
[1757088284112,4.051,4283.5,4283.1,2.33474921]
[1757088284310,4.051,4283.5,4283.2,0.4838]
[1757088284617,4.05,4283.6,4283.2,2.8185009]
[1757088284909,0.001,4283.7,4282.9,2.81866124]
[1757088284910,4.5082,4283.5,4282.9,2.81866124]
[1757088285110,0.116,4283.6,4283.0,2.3347992]
[1757088285321,4.062,4283.5,4283.0,2.86176146]
[1757088285527,4.062,4283.5,4283.0,1.010752]
[1757088285725,4.062,4283.5,4282.8,0.116]
[1757088285726,4.062,4283.5,4282.9,2.33483868]
[1757088286012,2.33463297,4283.4,4282.8,0.116]
[1757088286311,2.33463297,4283.4,4282.1,3.0]
[1757088286312,0.2937,4282.9,4282.3,2.3351428]
[1757088286602,0.2937,4282.9,4282.2,0.116]
[1757088286603,4.9289,4282.9,4282.2,0.116]
[1757088286769,0.116,4282.5,4281.9,2.33540718]
[1757088286963,0.116,4282.5,4281.9,2.81660116]
[1757088287270,0.116,4282.5,4281.9,0.48119398]
[1757088287493,0.116,4282.5,4281.8,0.14100001]
[1757088287494,4.06,4282.4,4281.8,0.14100001]
[1757088287669,4.5192,4282.4,4281.8,0.02500001]
[1757088287869,2.74511184,4281.9,4281.8,0.02500001]
[1757088288097,6.68911184,4281.9,4281.8,0.02500001]
[1757088288398,7.64731184,4281.9,4281.8,0.02500001]
[1757088290067,3.58731184,4281.9,4281.8,0.02500001]
[1757088290268,3.08831184,4281.9,4281.8,0.02500001]
[1757088290524,7.14731184,4281.9,4281.8,0.02500001]
[1757088290879,7.64631184,4281.9,4281.8,0.02500001]
[1757088291384,4.057,4281.9,4281.8,0.02500001]
[1757088292813,7.14531184,4281.9,4281.8,0.02500001]
[1757088292989,3.08831184,4281.9,4281.8,0.02500001]
[1757088293194,7.15231184,4281.9,4281.8,0.02500001]
[1757088293596,3.58731184,4281.9,4281.8,0.02500001]
[1757088293903,7.15231184,4281.9,4281.8,0.02500001]
[1757088294214,3.08831184,4281.9,4281.8,0.02500001]
[1757088294582,6.40041184,4281.9,4281.8,0.02500001]
[1757088295080,6.39941184,4281.9,4281.8,0.02500001]
[1757088295475,2.33537857,4282.0,4281.8,0.02500001]
[1757088295677,4.065,4281.9,4281.8,0.02500001]
[1757088295882,4.063,4281.9,4281.8,0.02500001]
[1757088296716,2.33528278,4282.2,4281.8,0.02500001]
[1757088296934,4.062,4281.9,4281.8,0.02500001]
[1757088297721,4.05896825,4281.9,4281.8,0.02500001]
[1757088297924,4.04378214,4281.9,4281.8,0.02500001]
[1757088298198,4.15978214,4281.9,4281.8,0.02500001]
[1757088298402,0.116,4281.9,4281.8,0.02500001]
[1757088298598,4.176,4281.9,4281.8,0.02500001]
[1757088299210,3.0,4282.6,4281.8,0.02500001]
[1757088299211,1.72,4282.9,4281.8,0.80440001]
[1757088299414,1.72,4282.9,4281.8,0.32060001]
[1757088299415,0.116,4282.2,4281.8,0.32060001]
[1757088299630,4.059,4282.1,4281.8,0.02500001]
[1757088300295,4.059,4282.8,4282.0,0.2956]
[1757088300522,4.175,4283.0,4282.1,1.08819541]
[1757088300697,2.33492515,4282.8,4282.1,0.13019541]
[1757088300899,2.33492515,4282.8,4281.8,0.02500001]
[1757088300900,0.116,4282.2,4281.8,0.02500001]
[1757088301132,4.059,4282.1,4281.9,2.33540042]
[1757088301326,4.059,4282.1,4281.8,0.02500001]
[1757088301635,0.7529,4282.0,4281.8,0.02500001]
[1757088301844,0.2937,4282.0,4281.8,0.02500001]
[1757088302147,4.059,4282.1,4281.8,0.02500001]
[1757088302434,2.1802,4282.5,4281.9,3.11478214]
[1757088302435,4.07,4282.0,4281.9,3.11478214]
[1757088302634,4.07,4282.0,4281.9,3.66231121]
[1757088303136,4.07,4282.0,4281.9,1.32692907]
[1757088303703,4.07,4282.0,4281.9,0.2956]
[1757088304035,4.07,4282.0,4281.9,0.7794]
[1757088304212,1.721,4282.5,4281.9,1.2536]
[1757088304411,0.001,4283.6,4282.7,2.33494391]
[1757088304412,2.494,4282.8,4282.7,2.33494391]
[1757088304614,4.07,4282.9,4282.7,1.2536]
[1757088304821,4.07,4282.9,4282.7,0.7794]
[1757088305014,4.07,4282.9,4282.7,3.11436807]
[1757088305434,1.721,4283.4,4282.8,0.4838]
[1757088305646,4.07,4283.3,4282.8,0.4838]
[1757088305798,6.40466788,4283.3,4282.8,0.4838]
[1757088305999,4.068,4283.2,4282.8,0.4838]
[1757088306204,0.001,4283.3,4282.8,0.4838]
[1757088306405,4.068,4283.2,4282.8,0.4838]
[1757088306604,6.40272239,4283.2,4282.3,0.958]
[1757088306909,4.068,4283.2,4282.5,2.33504484]
[1757088307108,4.068,4283.2,4282.5,2.3350433]
[1757088307339,0.001,4283.3,4283.1,0.2956]
[1757088307639,4.065,4283.2,4283.1,2.63035753]
[1757088307942,0.001,4283.3,4283.2,2.33470302]
[1757088308102,0.001,4283.3,4283.2,3.86327092]
[1757088308304,0.001,4283.3,4283.2,1.32662087]
[1757088308499,0.001,4283.3,4283.0,2.33481151]
[1757088308698,0.001,4283.3,4282.7,0.958]
[1757088309009,0.001,4283.3,4283.2,2.63030302]
[1757088309529,0.001,4283.3,4283.2,0.2956]
[1757088309730,0.001,4283.3,4283.2,3.09910302]
[1757088309934,0.001,4283.3,4283.2,7.08778993]
[1757088310318,0.001,4283.3,4283.2,7.87978993]
[1757088310523,0.001,4283.3,4283.2,24.73996791]
[1757088311348,0.001,4283.3,4283.2,24.83350508]
[1757088311551,0.001,4283.3,4283.2,24.94950508]
[1757088312671,0.001,4283.6,4283.5,3.12653951]
[1757088312872,0.001,4283.6,4283.5,12.47879287]
[1757088313079,0.001,4283.7,4283.6,6.12648501]
[1757088313362,0.001,4284.2,4284.1,3.12621255]
[1757088313530,0.001,4284.7,4284.3,3.12610358]
[1757088313730,0.001,4284.7,4284.3,6.14944461]
[1757088313953,0.001,4284.7,4284.6,6.12594015]
[1757088314266,0.001,4284.9,4284.8,22.98600919]
[1757088314479,0.001,4284.9,4284.8,23.30060919]
[1757088314782,0.001,4286.0,4285.3,6.12555891]
[1757088315070,0.001,4286.0,4285.3,10.18855891]
[1757088315272,0.001,4286.0,4285.3,12.66947614]
[1757088315761,0.4437,4285.7,4285.3,6.58577614]
[1757088315929,0.4437,4285.7,4285.3,5.33355891]
[1757088316129,0.4437,4285.7,4285.3,2.33355891]
[1757088316836,0.4437,4285.7,4285.2,2.33360594]
[1757088317168,0.001,4286.0,4285.3,2.33355891]
[1757088317371,0.001,4286.0,4285.3,2.64815891]
[1757088317532,0.001,4286.0,4285.3,4.39165716]
[1757088317739,0.001,4286.0,4285.3,8.42832158]
[1757088318152,0.001,4286.0,4285.3,11.42832158]
[1757088318483,0.001,4286.0,4285.3,12.66562158]
[1757088319085,0.001,4286.0,4285.7,2.33334111]
[1757088319249,0.001,4286.0,4285.7,24.09839391]
[1757088319438,0.001,4286.0,4285.7,8.81461593]
[1757088320263,0.001,4286.0,4285.7,9.25991593]
[1757088320671,0.025,4286.8,4286.7,2.33279679]
[1757088320860,0.025,4286.8,4286.7,27.04497477]
[1757088321169,0.025,4286.8,4286.7,30.09628274]
[1757088321471,0.025,4286.8,4286.7,30.63504822]
[1757088321837,0.025,4286.8,4286.7,11.66170476]
[1757088322034,0.025,4286.8,4286.7,9.39379679]
[1757088322451,0.025,4286.8,4286.7,9.39279679]
[1757088322774,0.025,4286.8,4286.7,9.50879679]
[1757088323084,1.2549,4286.8,4285.7,4.90487482]
[1757088323372,0.4437,4286.7,4286.2,0.116]
[1757088323553,0.3072,4286.3,4286.2,0.116]
[1757088323752,0.7509,4286.3,4286.2,0.116]
[1757088323976,1.2299,4286.3,4286.2,0.116]
[1757088324269,1.2299,4286.3,4285.4,0.116]
[1757088324270,0.001,4285.8,4285.4,0.116]
[1757088324483,0.3072,4285.5,4285.4,0.116]
[1757088324650,0.7509,4285.5,4285.4,0.116]
[1757088325185,0.001,4285.8,4285.4,0.116]
[1757088325389,0.7509,4285.5,4285.4,0.116]
[1757088326069,0.001,4285.8,4285.4,0.3613657]
[1757088326249,0.4437,4285.7,4285.4,0.116]
[1757088326449,0.001,4285.8,4285.4,2.44950445]
[1757088326450,0.3072,4285.5,4285.4,2.44950445]
[1757088326690,0.4437,4285.6,4285.5,2.33345]
[1757088327168,0.001,4285.8,4285.5,0.3146]
[1757088327369,0.001,4285.8,4285.7,2.44934111]
[1757088328169,0.001,4285.8,4285.7,8.56401899]
[1757088328346,0.001,4285.8,4285.7,11.89331899]
[1757088328555,0.001,4286.3,4286.2,6.12506891]
[1757088328781,0.001,4286.3,4286.2,23.54731057]
[1757088328981,0.001,4286.3,4286.2,23.97791057]
[1757088329154,0.001,4286.3,4286.2,27.15991854]
[1757088332091,0.001,4286.3,4286.2,26.71461854]
[1757088332387,0.001,4286.3,4286.2,17.616]
[1757088332564,0.7519,4286.3,4286.2,14.5]
[1757088333589,0.7519,4286.3,4285.2,2.33359148]
[1757088333590,1.2309,4286.3,4285.2,2.33359148]
[1757088333889,3.25582101,4286.2,4285.3,2.33352874]
[1757088334077,0.3072,4285.4,4285.2,2.33357554]
[1757088334277,0.4437,4285.3,4285.1,0.004]
[1757088334592,0.4437,4285.3,4285.2,17.36739047]
[1757088334790,0.7509,4285.3,4285.2,17.36739047]
[1757088334995,0.4437,4285.9,4285.4,2.33347702]
[1757088335291,0.479,4286.2,4285.4,2.33347702]
[1757088335491,0.4437,4286.1,4285.2,15.03377711]
[1757088335796,0.4437,4286.0,4285.4,2.33350445]
[1757088336205,0.4437,4286.0,4285.6,2.33335578]
[1757088336377,0.001,4286.3,4285.7,2.33333639]
[1757088336577,0.001,4286.3,4285.8,0.02333286]
[1757088336776,0.001,4286.3,4285.7,2.33333639]
[1757088337001,0.001,4286.3,4285.6,2.33337092]
[1757088337303,0.001,4286.3,4285.7,2.33333285]
[1757088337720,0.001,4286.3,4285.8,2.33327775]
[1757088337867,0.001,4286.3,4285.7,2.33331921]
[1757088338401,0.001,4286.3,4285.7,2.33332619]
[1757088338604,0.001,4286.3,4285.6,0.62547904]
[1757088338812,0.001,4286.3,4286.2,2.33306891]
[1757088338971,0.3072,4285.7,4285.1,0.4477]
[1757088339170,0.3072,4285.7,4285.1,2.78136266]
[1757088339386,0.3072,4285.7,4285.3,3.0]
[1757088339585,0.001,4286.3,4285.4,2.33350445]
[1757088339788,0.4699,4286.2,4285.6,2.33339555]
[1757088339987,2.80297232,4286.2,4285.4,2.33346023]
[1757088340190,0.4699,4286.2,4285.5,2.33343776]
[1757088340390,0.4699,4286.2,4285.6,14.5]
[1757088340623,0.4699,4286.2,4285.7,2.33333549]
[1757088340773,0.001,4286.3,4285.7,2.33333549]
[1757088340774,0.001,4286.3,4285.7,1.91668399]
[1757088340980,0.001,4286.3,4285.7,4.25000336]
[1757088341294,0.001,4286.3,4285.7,1.91668399]
[1757088341468,0.001,4286.3,4286.2,2.63186891]
[1757088341865,0.001,4286.3,4286.2,3.11326891]
[1757088342065,0.001,4286.3,4286.2,4.063009]
[1757088342470,0.001,4286.3,4286.2,4.179009]
[1757088342882,0.001,4286.3,4286.2,8.232009]
[1757088343079,0.001,4286.3,4286.2,7.749609]
[1757088343278,0.001,4286.3,4286.2,2.44906891]
[1757088343478,0.001,4286.3,4286.2,14.616]
[1757088343677,0.001,4286.3,4286.2,16.94906891]
[1757088344699,0.001,4286.3,4286.2,14.616]
[1757088344868,0.7763,4286.3,4286.2,14.616]
[1757088345070,0.7763,4286.3,4286.2,14.5]
[1757088345470,0.7763,4286.3,4286.0,0.116]
[1757088345699,0.7763,4286.3,4285.1,2.3376417]
[1757088345700,0.9258,4286.2,4285.3,0.004]
[1757088345871,0.9258,4286.2,4285.7,0.116]
[1757088346073,0.3054,4285.8,4285.7,2.44931178]
[1757088346303,0.3054,4285.8,4285.7,0.116]
[1757088346505,1.2312,4285.8,4285.3,0.004]
[1757088346708,0.4699,4285.7,4285.3,0.004]
[1757088347222,0.001,4286.3,4285.3,0.47153221]
[1757088347515,6.85196891,4286.2,4285.4,2.33350445]
[1757088347815,0.4699,4286.2,4285.3,0.004]
[1757088348126,0.001,4286.3,4285.3,0.004]
[1757088348127,0.001,4286.3,4285.8,2.33326257]
[1757088348310,0.001,4286.3,4285.6,2.33339034]
[1757088348311,0.3054,4285.9,4285.6,2.33339034]
[1757088348512,0.3054,4285.9,4285.6,2.33337721]
[1757088348707,0.001,4286.3,4285.8,2.33328666]
[1757088348881,0.4699,4286.2,4285.9,2.33322379]
[1757088349082,0.001,4286.3,4285.5,14.5]
[1757088349317,0.001,4286.3,4285.7,2.33334111]
[1757088349619,0.001,4286.3,4285.9,2.33319223]
[1757088349982,0.001,4286.3,4286.1,2.33311258]
[1757088350629,0.001,4286.3,4286.0,2.33315584]
[1757088350809,0.001,4286.3,4286.1,2.33310229]
[1757088351508,0.001,4286.3,4286.2,2.33306891]
[1757088351907,0.001,4286.3,4286.2,2.79969349]
[1757088352202,0.001,4286.3,4286.2,3.57989349]
[1757088352616,0.001,4286.3,4286.2,4.39522417]
[1757088352920,0.001,4286.3,4286.2,7.86052417]
[1757088353153,0.001,4286.3,4286.2,7.83719349]
[1757088353329,0.001,4286.3,4286.2,22.33719349]
[1757088353622,0.001,4286.7,4286.6,2.33285121]
[1757088353787,0.001,4286.7,4286.6,7.24695642]
[1757088353991,0.001,4286.7,4286.6,8.46912791]
[1757088355224,0.026,4286.8,4286.7,6.12479679]
[1757088355225,1e-08,4286.8,4286.7,6.12479679]
[1757088355532,1e-08,4286.8,4286.7,7.07149679]
[1757088355845,1e-08,4286.8,4286.7,9.63820476]
[1757088355999,1e-08,4286.8,4286.7,9.73166566]
[1757088356199,1e-08,4286.8,4286.7,24.23166566]
[1757088356542,1e-08,4286.8,4286.7,27.14316566]
[1757088356835,1e-08,4286.8,4286.7,27.04970476]
[1757088357137,1e-08,4286.8,4286.7,28.29520476]
[1757088359935,1e-08,4286.8,4286.7,30.01320476]
[1757088360099,1e-08,4286.8,4286.7,25.50690476]
[1757088360303,0.30540001,4286.8,4286.7,18.66679679]
[1757088360603,0.30540001,4286.8,4286.7,16.83279679]
[1757088360604,0.77530001,4286.8,4286.7,16.83279679]
[1757088361034,1e-08,4286.8,4286.7,21.65299679]
[1757088361336,1e-08,4286.8,4286.7,22.44499679]
[1757088361535,1e-08,4286.8,4286.7,27.71290476]
[1757088361712,1e-08,4286.8,4286.7,28.17820476]
[1757088361911,1e-08,4286.8,4286.7,29.89620476]
[1757088362314,0.001,4287.2,4287.0,0.792]
[1757088362515,0.025,4287.8,4287.7,6.12425272]
[1757088362516,1e-08,4287.8,4287.7,6.12425272]
[1757088362814,1e-08,4287.8,4287.7,24.67295136]
[1757088363027,1e-08,4287.8,4287.7,40.11965136]
[1757088363207,1e-08,4287.8,4287.7,40.21307907]
[1757088364820,1e-08,4287.8,4287.7,39.74777907]
[1757088365023,1e-08,4287.8,4287.7,35.70477907]
[1757088365217,1e-08,4287.8,4287.7,39.74577907]
[1757088366016,1e-08,4287.8,4287.7,40.21107907]
[1757088366739,1e-08,4287.8,4287.7,39.74577907]
[1757088367507,1e-08,4287.8,4287.7,40.21107907]
[1757088368358,0.026,4288.8,4288.5,19.48505931]
[1757088368525,2.33033728,4291.3,4289.7,3.12316534]
[1757088368727,0.4699,4290.4,4289.7,7.16016534]
[1757088368942,0.3314,4289.8,4289.7,21.66016534]
[1757088369127,0.8013,4289.8,4289.7,21.66016534]
[1757088369757,0.8013,4289.8,4289.7,20.86816534]
[1757088370526,0.8013,4289.8,4289.7,20.98416534]
[1757088371072,1.2927,4289.8,4289.7,20.98416534]
[1757088371771,1.2927,4289.8,4289.7,14.616]
[1757088372430,1.2927,4289.8,4288.7,2.33166517]
[1757088372431,1.2927,4289.8,4288.6,2.33176327]
[1757088372743,0.4557,4289.7,4289.6,2.33121969]
[1757088372952,0.7471,4289.7,4289.6,2.33121969]
[1757088373461,0.7471,4289.7,4289.5,4.152]
[1757088373641,0.2914,4289.7,4289.6,14.5]
[1757088373838,0.2914,4289.7,4289.6,16.83121969]
[1757088374044,0.2914,4289.7,4289.6,14.5]
[1757088374234,0.7471,4289.7,4289.6,14.5]
[1757088374435,1.2385,4289.7,4289.6,14.5]
[1757088375388,1.2385,4289.7,4288.7,2.33170254]
[1757088375389,2.33131624,4289.5,4288.7,2.33170254]
[1757088375549,0.4557,4289.4,4289.2,2.33139597]
[1757088375729,0.4557,4289.4,4289.3,0.116]
[1757088375934,0.026,4289.8,4289.3,0.116]
[1757088376129,0.4557,4289.7,4289.3,0.116]
[1757088376361,0.2914,4289.4,4289.3,0.116]
[1757088376562,0.026,4289.8,4289.7,2.33116534]
[1757088376945,0.026,4289.8,4289.7,0.116]
[1757088376946,0.7731,4289.8,4289.7,0.116]
[1757088377284,0.7731,4289.8,4289.7,14.616]
[1757088377285,1.2645,4289.8,4289.7,14.616]
[1757088377661,1.2645,4289.8,4289.3,4.037]
[1757088377877,0.9471,4289.7,4289.5,0.116]
[1757088378254,1.2385,4289.6,4289.5,14.616]
[1757088378435,0.7471,4289.6,4289.5,14.616]
[1757088378857,1.2385,4289.6,4289.5,14.616]
[1757088379650,1.2385,4289.6,4289.5,0.116]
[1757088379985,0.7471,4289.6,4289.5,0.116]
[1757088380138,0.026,4289.8,4289.5,14.616]
[1757088380339,0.4817,4289.8,4289.6,2.33116586]
[1757088380536,0.2914,4289.6,4289.5,14.616]
[1757088380759,0.7471,4289.6,4289.5,14.616]
[1757088381163,1.2385,4289.6,4289.5,14.616]
[1757088381574,1.36495,4289.6,4287.8,0.025]
[1757088381771,0.5717,4289.5,4288.7,0.116]
[1757088381945,0.5717,4289.5,4288.8,2.33164862]
[1757088382143,0.5717,4289.5,4288.9,14.5]
[1757088382144,0.4557,4289.5,4288.9,14.5]
[1757088382492,0.4557,4289.5,4289.2,0.116]
[1757088382693,0.026,4289.8,4288.4,4.033]
[1757088382694,2.33147502,4289.2,4288.4,4.033]
[1757088382894,0.116,4289.0,4288.3,0.116]
[1757088383044,0.2914,4288.5,4288.3,2.44791604]
[1757088383440,0.2914,4288.5,4288.4,2.33187202]
[1757088383647,0.4557,4288.9,4288.4,2.33187202]
[1757088383957,0.4557,4288.8,4288.5,2.33180988]
[1757088384185,0.4557,4288.8,4288.5,0.116]
[1757088384391,0.4557,4288.8,4288.5,2.4478105]
[1757088384612,0.4557,4288.8,4288.5,0.116]
[1757088385321,0.4557,4288.8,4288.6,2.33173328]
[1757088385476,0.4557,4288.8,4288.5,0.116]
[1757088385477,0.116,4289.2,4288.5,0.116]
[1757088385676,0.5717,4289.2,4288.5,0.116]
[1757088385881,0.5717,4289.2,4288.5,2.44781269]
[1757088386284,0.5717,4289.2,4288.7,2.33169784]
[1757088386478,0.5717,4289.2,4288.5,2.44780042]
[1757088386678,0.5717,4289.2,4288.5,0.116]
[1757088386874,0.2914,4288.6,4288.5,0.116]
[1757088387075,0.7471,4288.6,4288.5,0.116]
[1757088387507,0.4557,4289.1,4288.6,2.33176327]
[1757088387679,0.4557,4289.0,4288.8,2.3316417]
[1757088388379,2.3312449,4289.6,4288.5,0.116]
[1757088388380,0.4557,4289.6,4288.5,0.116]
[1757088388588,0.4557,4289.6,4288.3,13.36124166]
[1757088388589,4.6037,4289.6,4288.9,0.116]
[1757088388825,4.6037,4289.6,4288.9,2.44756189]
[1757088389127,0.116,4289.6,4289.0,2.33150092]
[1757088389431,0.2914,4289.1,4288.9,0.116]
[1757088389605,0.2914,4289.1,4288.6,0.116]
[1757088389606,0.4557,4289.0,4288.6,0.116]
[1757088389809,0.4914,4289.5,4288.6,0.116]
[1757088389810,0.4557,4289.5,4289.1,2.33145311]
[1757088390501,0.4557,4289.5,4289.1,2.33149145]
[1757088390502,0.2914,4289.2,4289.1,2.33149145]
[1757088390674,0.2914,4289.2,4289.0,0.116]
[1757088390874,3.27862925,4289.1,4287.8,0.025]
[1757088391088,0.116,4289.0,4288.3,0.116]
[1757088391324,0.2914,4288.4,4288.3,2.4479264]
[1757088391680,0.2914,4288.4,4288.3,0.116]
[1757088391880,0.2914,4288.4,4288.3,2.4479264]
[1757088392111,0.4557,4288.9,4288.3,2.4479264]
[1757088392986,0.4557,4288.9,4288.3,0.116]
[1757088393314,0.2914,4288.4,4288.0,2.33205658]
[1757088393616,0.2914,4288.4,4288.0,0.116]
[1757088393813,3.0,4288.2,4287.8,0.025]
[1757088394016,0.2914,4287.9,4287.8,0.025]
[1757088394483,0.7471,4287.9,4287.8,0.025]
[1757088394676,3.57064393,4287.9,4287.8,0.025]
[1757088395082,2.33268795,4286.9,4286.8,0.025]
[1757088395518,3.57118795,4286.9,4286.8,0.025]